[Event "MČR juniorů a juniorek v rapid šachu 2024"]
[Site "Hotel Fit Fun, Harrachov, Czech Republic"]
[Date "2024.09.21"]
[Round "1.6"]
[White "Nagyova Daniela"]
[Black "Vilimek Vit"]
[Result "0-1"]
[TimeControl "20+5"]
[WhiteFideId "390070"]
[BlackFideId "23718218"]
[WhiteElo "1787"]
[BlackElo "2025"]

1. e4 {[%clk 00:20:07]} {[%emt 00:00:03]} c5 {[%clk 00:19:52]} {[%emt
00:00:18]} 2. Nf3 {[%clk 00:20:09]} {[%emt 00:00:03]} Nc6 {[%clk 00:19:56]}
{[%emt 00:00:02]} 3. Nc3 {[%clk 00:20:12]} {[%emt 00:00:02]} Nf6 {[%clk
00:19:56]} {[%emt 00:00:05]} 4. Bb5 {[%clk 00:20:14]} {[%emt 00:00:03]} Qc7
{[%clk 00:19:53]} {[%emt 00:00:07]} 5. O-O {[%clk 00:20:01]} {[%emt 00:00:18]}
Nd4 {[%clk 00:19:57]} {[%emt 00:00:02]} 6. Ba4 {[%clk 00:17:56]} {[%emt
00:02:10]} a6 {[%clk 00:19:20]} {[%emt 00:00:42]} 7. Nxd4 {[%clk 00:17:16]}
{[%emt 00:00:45]} cxd4 {[%clk 00:19:23]} {[%emt 00:00:02]} 8. Nd5 {[%clk
00:17:16]} {[%emt 00:00:04]} Nxd5 {[%clk 00:19:16]} {[%emt 00:00:12]} 9. exd5
{[%clk 00:17:19]} {[%emt 00:00:02]} b5 {[%clk 00:19:20]} {[%emt 00:00:02]} 10.
Bb3 {[%clk 00:17:16]} {[%emt 00:00:08]} d6 {[%clk 00:19:15]} {[%emt 00:00:10]}
11. Qf3 {[%clk 00:14:41]} {[%emt 00:02:39]} g6 {[%clk 00:18:53]} {[%emt
00:00:27]} 12. Re1 {[%clk 00:13:39]} {[%emt 00:01:07]} Bg7 {[%clk 00:18:56]}
{[%emt 00:00:03]} 13. a4 {[%clk 00:12:23]} {[%emt 00:01:20]} b4 {[%clk
00:18:24]} {[%emt 00:00:38]} 14. a5 {[%clk 00:11:38]} {[%emt 00:00:50]} O-O
{[%clk 00:18:21]} {[%emt 00:00:08]} 15. d3 {[%clk 00:11:15]} {[%emt 00:00:28]}
Rb8 {[%clk 00:17:34]} {[%emt 00:00:53]} 16. Bg5 {[%clk 00:08:52]} {[%emt
00:02:27]} Re8 {[%clk 00:17:03]} {[%emt 00:00:35]} 17. Bd2 {[%clk 00:07:55]}
{[%emt 00:01:02]} Bd7 {[%clk 00:16:38]} {[%emt 00:00:30]} 18. Re2 {[%clk
00:06:40]} {[%emt 00:01:21]} Bf6 {[%clk 00:15:17]} {[%emt 00:01:26]} 19. Qg3
{[%clk 00:04:56]} {[%emt 00:01:48]} Rb5 {[%clk 00:14:19]} {[%emt 00:01:03]} 20.
Rae1 {[%clk 00:04:03]} {[%emt 00:00:58]} Kg7 {[%clk 00:12:53]} {[%emt
00:01:32]} 21. Bg5 {[%clk 00:03:40]} {[%emt 00:00:27]} Bxg5 {[%clk 00:12:56]}
{[%emt 00:00:02]} 22. Qxg5 {[%clk 00:03:43]} {[%emt 00:00:03]} e5 {[%clk
00:12:09]} {[%emt 00:00:53]} 23. Re4 {[%clk 00:01:45]} {[%emt 00:02:03]} f6
{[%clk 00:11:54]} {[%emt 00:00:19]} 24. Qg3 {[%clk 00:01:44]} {[%emt 00:00:06]}
Rxa5 {[%clk 00:10:59]} {[%emt 00:01:00]} 25. f4 {[%clk 00:00:56]} {[%emt
00:00:54]} Rb5 {[%clk 00:08:30]} {[%emt 00:02:33]} 26. Kh1 {[%clk 00:00:14]}
{[%emt 00:00:47]} Rbb8 {[%clk 00:08:21]} {[%emt 00:00:14]} 27. fxe5 {[%clk
00:00:14]} {[%emt 00:00:06]} fxe5 {[%clk 00:08:17]} {[%emt 00:00:09]} 28. Rh4
{[%clk 00:00:10]} {[%emt 00:00:08]} Qd8 {[%clk 00:07:36]} {[%emt 00:00:46]} 29.
Rhe4 {[%clk 00:00:07]} {[%emt 00:00:08]} Qf6 {[%clk 00:07:23]} {[%emt
00:00:18]} 30. Kg1 {[%clk 00:00:09]} {[%emt 00:00:04]} Rf8 {[%clk 00:07:27]} 31.
R4e2 {[%clk 00:00:07]} {[%emt 00:00:07]} a5 {[%clk 00:07:00]} {[%emt 00:00:32]}
32. Ra1 {[%clk 00:00:09]} {[%emt 00:00:03]} a4 {[%clk 00:07:03]} {[%emt
00:00:01]} 33. Ba2 {[%clk 00:00:08]} {[%emt 00:00:07]} b3 {[%clk 00:07:05]}
{[%emt 00:00:03]} 34. cxb3 {[%clk 00:00:08]} {[%emt 00:00:05]} axb3 {[%clk
00:07:08]} {[%emt 00:00:01]} 35. Bxb3 {[%clk 00:00:08]} {[%emt 00:00:05]} Rxb3
{[%clk 00:07:10]} {[%emt 00:00:04]} 36. h3 {[%clk 00:00:09]} {[%emt 00:00:04]}
Qf4 {[%clk 00:06:59]} {[%emt 00:00:15]} 37. Qe1 {[%clk 00:00:07]} {[%emt
00:00:08]} Rxd3 {[%clk 00:06:39]} {[%emt 00:00:24]} 38. Ra7 {[%clk 00:00:11]}
{[%emt 00:00:02]} Rf7 {[%clk 00:06:43]} 0-1



[ePGN "0.1;DGT LiveChess/2.2.6"]

[Event "MČR juniorů a juniorek v rapid šachu 2024"]
[Site "Hotel Fit Fun, Harrachov, Czech Republic"]
[Date "2024.09.21"]
[Round "1.7"]
[White "Stocek Martin"]
[Black "Hrazdira Matyas Josef"]
[Result "1-0"]
[TimeControl "20+5"]
[WhiteFideId "380121"]
[BlackFideId "23732954"]
[WhiteElo "2021"]
[BlackElo "1786"]

1. d4 {[%clk 00:20:09]} {[%emt 00:00:01]} Nf6 {[%clk 00:20:08]} {[%emt
00:00:02]} 2. c4 {[%clk 00:20:12]} {[%emt 00:00:02]} e6 {[%clk 00:20:02]}
{[%emt 00:00:11]} 3. Nf3 {[%clk 00:20:15]} d5 {[%clk 00:19:59]} {[%emt
00:00:09]} 4. Nc3 {[%clk 00:20:18]} {[%emt 00:00:02]} Bb4 {[%clk 00:20:02]}
{[%emt 00:00:02]} 5. Qa4+ {[%clk 00:20:14]} {[%emt 00:00:09]} Nc6 {[%clk
00:20:05]} {[%emt 00:00:01]} 6. e3 {[%clk 00:20:13]} {[%emt 00:00:05]} O-O
{[%clk 00:19:53]} {[%emt 00:00:18]} 7. Bd2 {[%clk 00:20:09]} {[%emt 00:00:09]}
Re8 {[%clk 00:17:10]} {[%emt 00:02:48]} 8. a3 {[%clk 00:20:09]} {[%emt
00:00:05]} Bxc3 {[%clk 00:17:00]} {[%emt 00:00:15]} 9. Bxc3 {[%clk 00:20:12]}
{[%emt 00:00:02]} Ne4 {[%clk 00:16:56]} {[%emt 00:00:09]} 10. Qc2 {[%clk
00:18:20]} {[%emt 00:01:57]} a5 {[%clk 00:13:39]} {[%emt 00:03:22]} 11. Bd3
{[%clk 00:17:52]} {[%emt 00:00:32]} Nf6 {[%clk 00:11:28]} {[%emt 00:02:17]} 12.
O-O {[%clk 00:16:51]} {[%emt 00:01:06]} Ne7 {[%clk 00:11:11]} {[%emt 00:00:22]}
13. Rfe1 {[%clk 00:14:14]} {[%emt 00:02:41]} Ng6 {[%clk 00:10:55]} {[%emt
00:00:22]} 14. Rac1 {[%clk 00:13:33]} {[%emt 00:00:46]} c6 {[%clk 00:10:08]}
{[%emt 00:00:52]} 15. Rcd1 {[%clk 00:11:55]} {[%emt 00:01:43]} Qc7 {[%clk
00:09:16]} {[%emt 00:00:57]} 16. e4 {[%clk 00:06:24]} {[%emt 00:05:35]} Nf4
{[%clk 00:06:58]} {[%emt 00:02:24]} 17. e5 {[%clk 00:06:03]} {[%emt 00:00:27]}
Nxd3 {[%clk 00:06:35]} {[%emt 00:00:27]} 18. Qxd3 {[%clk 00:06:06]} {[%emt
00:00:01]} Ne4 {[%clk 00:06:27]} {[%emt 00:00:14]} 19. a4 {[%clk 00:02:42]}
{[%emt 00:03:30]} b6 {[%clk 00:05:54]} {[%emt 00:00:38]} 20. b3 {[%clk
00:02:06]} {[%emt 00:00:40]} Nxc3 {[%clk 00:04:26]} {[%emt 00:01:33]} 21. Qxc3
{[%clk 00:02:10]} {[%emt 00:00:02]} dxc4 {[%clk 00:02:53]} {[%emt 00:01:38]} 22.
bxc4 {[%clk 00:02:07]} {[%emt 00:00:08]} Ba6 {[%clk 00:02:26]} {[%emt
00:00:31]} 23. Ng5 {[%clk 00:01:54]} {[%emt 00:00:18]} Rec8 {[%clk 00:01:13]}
{[%emt 00:01:18]} 24. Qc2 {[%clk 00:01:48]} {[%emt 00:00:11]} g6 {[%clk
00:01:09]} {[%emt 00:00:09]} 25. Ne4 {[%clk 00:01:51]} {[%emt 00:00:02]} Qe7
{[%clk 00:00:47]} {[%emt 00:00:27]} 26. Qc1 {[%clk 00:01:26]} {[%emt 00:00:30]}
Kg7 {[%clk 00:00:43]} {[%emt 00:00:09]} 27. Nd6 {[%clk 00:00:51]} {[%emt
00:00:41]} Rc7 {[%clk 00:00:45]} {[%emt 00:00:02]} 28. Qb2 {[%clk 00:00:37]}
{[%emt 00:00:19]} Rb8 {[%emt 00:00:07]} 29. Rb1 {[%emt 00:00:14]} Kg8 {[%clk
00:00:37]} {[%emt 00:00:03]} 30. Qc1 {[%clk 00:00:41]} Kg7 {[%emt 00:00:03]} 31.
Re3 {[%clk 00:00:47]} {[%emt 00:00:31]} Rd7 32. Rh3 {[%emt 00:00:03]} h5 {[%emt
00:00:14]} 33. Qf4 {[%emt 00:00:15]} c5 {[%emt 00:00:11]} 34. dxc5 {[%clk
00:00:32]} 1-0



[ePGN "0.1;DGT LiveChess/2.2.6"]

[Event "MČR juniorů a juniorek v rapid šachu 2024"]
[Site "Hotel Fit Fun, Harrachov, Czech Republic"]
[Date "2024.09.21"]
[Round "1.8"]
[White "Sadil Antonin"]
[Black "Pressler Tobias"]
[Result "1/2-1/2"]
[TimeControl "20+5"]
[WhiteFideId "23735597"]
[BlackFideId "23715359"]
[WhiteElo "1784"]
[BlackElo "1992"]

1. e4 {[%clk 00:20:06]} {[%emt 00:00:03]} d5 {[%clk 00:20:06]} {[%emt
00:00:04]} 2. exd5 {[%clk 00:20:07]} {[%emt 00:00:04]} Qxd5 {[%clk 00:20:08]}
{[%emt 00:00:04]} 3. Nc3 {[%clk 00:20:06]} {[%emt 00:00:05]} Qd6 {[%clk
00:20:12]} {[%emt 00:00:02]} 4. d4 {[%clk 00:20:00]} {[%emt 00:00:10]} Nf6
{[%clk 00:20:15]} {[%emt 00:00:03]} 5. Nf3 {[%clk 00:19:50]} {[%emt 00:00:14]}
a6 {[%clk 00:19:52]} {[%emt 00:00:29]} 6. g3 {[%clk 00:19:38]} {[%emt
00:00:17]} g6 {[%clk 00:19:48]} {[%emt 00:00:09]} 7. Bg2 {[%clk 00:19:20]}
{[%emt 00:00:22]} Bg7 {[%clk 00:19:50]} {[%emt 00:00:04]} 8. O-O {[%clk
00:19:04]} {[%emt 00:00:20]} Bg4 {[%clk 00:17:57]} {[%emt 00:01:59]} 9. h3
{[%clk 00:16:48]} {[%emt 00:02:21]} Bxf3 {[%clk 00:17:56]} {[%emt 00:00:06]} 10.
Bxf3 {[%clk 00:16:09]} {[%emt 00:00:44]} c6 {[%clk 00:17:37]} {[%emt 00:00:24]}
11. Bf4 {[%clk 00:15:22]} {[%emt 00:00:52]} Qb4 {[%clk 00:17:34]} {[%emt
00:00:08]} 12. Rb1 {[%clk 00:14:42]} {[%emt 00:00:45]} O-O {[%clk 00:17:30]}
{[%emt 00:00:08]} 13. Re1 {[%clk 00:14:16]} {[%emt 00:00:31]} e6 {[%clk
00:17:33]} {[%emt 00:00:02]} 14. a3 {[%clk 00:13:27]} {[%emt 00:00:55]} Qa5
{[%clk 00:17:08]} {[%emt 00:00:30]} 15. h4 {[%clk 00:10:34]} {[%emt 00:02:58]}
Rd8 {[%clk 00:16:59]} {[%emt 00:00:14]} 16. Bg5 {[%clk 00:09:50]} {[%emt
00:00:49]} h6 {[%clk 00:15:48]} {[%emt 00:01:17]} 17. Be3 {[%clk 00:08:32]}
{[%emt 00:01:23]} Nbd7 {[%clk 00:15:46]} {[%emt 00:00:07]} 18. Qd2 {[%clk
00:07:55]} {[%emt 00:00:41]} Kh7 {[%clk 00:15:44]} {[%emt 00:00:08]} 19. Ne4
{[%clk 00:06:54]} {[%emt 00:01:06]} Qf5 {[%clk 00:14:29]} {[%emt 00:01:20]} 20.
Nxf6+ {[%clk 00:06:04]} {[%emt 00:00:55]} Nxf6 {[%clk 00:14:15]} {[%emt
00:00:19]} 21. Bg2 {[%clk 00:05:53]} {[%emt 00:00:16]} Rd7 {[%clk 00:14:13]}
{[%emt 00:00:07]} 22. Rbd1 {[%clk 00:05:22]} {[%emt 00:00:36]} Rad8 {[%clk
00:14:12]} {[%emt 00:00:05]} 23. c3 {[%clk 00:05:25]} {[%emt 00:00:02]} c5
{[%clk 00:11:56]} {[%emt 00:02:22]} 24. Qe2 {[%clk 00:05:01]} {[%emt 00:00:28]}
cxd4 {[%clk 00:11:24]} {[%emt 00:00:38]} 25. Bxd4 {[%clk 00:04:50]} {[%emt
00:00:16]} e5 {[%clk 00:07:39]} {[%emt 00:03:50]} 26. Qxe5 {[%clk 00:03:28]}
{[%emt 00:01:27]} Qxe5 {[%clk 00:07:43]} 27. Rxe5 {[%clk 00:03:28]} {[%emt
00:00:04]} Ng4 {[%clk 00:07:47]} {[%emt 00:00:02]} 28. Re4 {[%clk 00:03:14]}
{[%emt 00:00:18]} f5 {[%clk 00:07:50]} {[%emt 00:00:02]} 29. Re2 {[%clk
00:02:40]} {[%emt 00:00:38]} Ne5 {[%clk 00:06:09]} {[%emt 00:01:47]} 30. Rde1
{[%clk 00:02:05]} {[%emt 00:00:40]} Nd3 {[%clk 00:06:11]} {[%emt 00:00:04]} 31.
Rd1 {[%clk 00:01:52]} {[%emt 00:00:17]} Nc5 {[%clk 00:05:28]} {[%emt 00:00:49]}
32. Rde1 {[%clk 00:01:49]} {[%emt 00:00:07]} Nd3 {[%clk 00:03:54]} {[%emt
00:01:40]} 33. Rd1 {[%clk 00:01:51]} {[%emt 00:00:03]} Bxd4 {[%clk 00:03:58]}
{[%emt 00:00:01]} 34. cxd4 {[%clk 00:01:55]} {[%emt 00:00:01]} Rxd4 {[%clk
00:04:01]} {[%emt 00:00:02]} 35. Red2 {[%clk 00:01:57]} {[%emt 00:00:02]} R4d7
{[%clk 00:03:41]} {[%emt 00:00:25]} 36. Bxb7 {[%clk 00:01:24]} {[%emt
00:00:39]} Rxb7 {[%clk 00:02:44]} {[%emt 00:01:03]} 37. Rxd3 {[%clk 00:01:27]}
Rxd3 {[%clk 00:02:47]} {[%emt 00:00:03]} 38. Rxd3 {[%clk 00:01:31]} {[%emt
00:00:01]} Rxb2 {[%clk 00:02:51]} 39. Rd7+ {[%clk 00:01:33]} {[%emt 00:00:03]}
Kg8 {[%clk 00:02:55]} {[%emt 00:00:01]} 40. Rd6 {[%clk 00:01:37]} {[%emt
00:00:01]} Kf7 {[%clk 00:02:59]} 41. Rxa6 {[%clk 00:01:40]} {[%emt 00:00:01]}
Ra2 {[%clk 00:03:02]} {[%emt 00:00:02]} 42. a4 {[%clk 00:01:37]} {[%emt
00:00:08]} Kg7 {[%clk 00:03:05]} {[%emt 00:00:02]} 43. a5 {[%clk 00:01:40]}
{[%emt 00:00:03]} Ra3 {[%clk 00:03:00]} {[%emt 00:00:10]} 44. Kg2 {[%clk
00:01:43]} {[%emt 00:00:02]} Kf7 {[%clk 00:02:57]} {[%emt 00:00:08]} 45. Ra8
{[%clk 00:01:44]} {[%emt 00:00:04]} Kg7 {[%clk 00:03:01]} {[%emt 00:00:02]} 46.
a6 {[%clk 00:01:47]} {[%emt 00:00:02]} Kh7 {[%clk 00:03:00]} {[%emt 00:00:05]}
47. a7 {[%clk 00:01:40]} {[%emt 00:00:12]} Kg7 {[%clk 00:03:04]} {[%emt
00:00:02]} 48. Kh2 {[%clk 00:01:31]} {[%emt 00:00:14]} 1/2-1/2



[ePGN "0.1;DGT LiveChess/2.2.6"]

[Event "MČR juniorů a juniorek v rapid šachu 2024"]
[Site "Hotel Fit Fun, Harrachov, Czech Republic"]
[Date "2024.09.21"]
[Round "1.9"]
[White "Juhanak Daniel"]
[Black "Dorazilova Kristyna"]
[Result "1-0"]
[TimeControl "20+5"]
[WhiteFideId "23718765"]
[BlackFideId "23739142"]
[WhiteElo "1982"]
[BlackElo "1771"]

1. Nf3 {[%clk 00:20:06]} {[%emt 00:00:03]} Nf6 {[%clk 00:20:09]} {[%emt
00:00:02]} 2. c4 {[%clk 00:20:09]} {[%emt 00:00:02]} e6 {[%clk 00:20:13]}
{[%emt 00:00:01]} 3. g3 {[%clk 00:20:08]} {[%emt 00:00:06]} b6 {[%clk
00:20:18]} {[%emt 00:00:01]} 4. Bg2 {[%clk 00:20:10]} {[%emt 00:00:03]} Bb7
{[%clk 00:20:22]} 5. O-O {[%clk 00:20:07]} {[%emt 00:00:08]} Be7 {[%clk
00:20:25]} 6. d4 {[%clk 00:19:24]} {[%emt 00:00:48]} O-O {[%clk 00:20:28]}
{[%emt 00:00:03]} 7. Re1 {[%clk 00:19:28]} {[%emt 00:00:01]} d5 {[%clk
00:20:32]} 8. cxd5 {[%clk 00:19:17]} {[%emt 00:00:16]} exd5 {[%clk 00:20:25]}
{[%emt 00:00:12]} 9. Nc3 {[%clk 00:19:16]} {[%emt 00:00:06]} Ne4 {[%clk
00:19:37]} {[%emt 00:00:53]} 10. Bf4 {[%clk 00:18:27]} {[%emt 00:00:53]} Nxc3
11. bxc3 {[%clk 00:18:24]} Nd7 {[%clk 00:19:20]} {[%emt 00:00:02]} 12. a4
{[%clk 00:17:35]} {[%emt 00:00:55]} a5 {[%clk 00:19:20]} {[%emt 00:00:04]} 13.
Qb3 {[%clk 00:16:08]} {[%emt 00:01:32]} Nf6 {[%clk 00:19:09]} {[%emt 00:00:17]}
14. Ne5 {[%clk 00:15:19]} {[%emt 00:00:53]} Bd6 {[%clk 00:18:03]} {[%emt
00:01:11]} 15. Nd3 {[%clk 00:12:43]} {[%emt 00:02:42]} Re8 {[%clk 00:16:22]}
{[%emt 00:01:46]} 16. Bxd6 {[%clk 00:06:38]} {[%emt 00:06:10]} Qxd6 {[%clk
00:16:26]} {[%emt 00:00:01]} 17. Rac1 {[%clk 00:05:45]} {[%emt 00:00:57]} Ba6
{[%clk 00:14:17]} {[%emt 00:02:14]} 18. Ne5 {[%clk 00:04:41]} {[%emt 00:01:09]}
Rad8 {[%clk 00:14:21]} {[%emt 00:00:01]} 19. e4 {[%clk 00:03:10]} {[%emt
00:01:36]} Rxe5 {[%emt 00:04:06]} 20. dxe5 {[%clk 00:03:10]} {[%emt 00:00:04]}
Qxe5 {[%clk 00:10:26]} 21. exd5 {[%clk 00:03:10]} {[%emt 00:00:05]} Qh5 {[%clk
00:10:30]} 22. c4 {[%clk 00:02:53]} {[%emt 00:00:22]} Bc8 {[%clk 00:10:26]}
{[%emt 00:00:08]} 23. Qf3 {[%clk 00:02:30]} {[%emt 00:00:28]} Bg4 {[%clk
00:09:39]} {[%emt 00:00:52]} 24. Qf4 {[%clk 00:02:21]} {[%emt 00:00:14]} Rd6
{[%clk 00:09:05]} {[%emt 00:00:39]} 25. Re5 {[%clk 00:02:06]} {[%emt 00:00:19]}
Qg6 {[%clk 00:07:48]} {[%emt 00:01:22]} 26. Be4 {[%clk 00:02:00]} {[%emt
00:00:11]} Nxe4 {[%clk 00:07:14]} {[%emt 00:00:40]} 27. Re8# {[%clk 00:02:04]}
{[%emt 00:00:01]} 1-0



[ePGN "0.1;DGT LiveChess/2.2.6"]

[Event "MČR juniorů a juniorek v rapid šachu 2024"]
[Site "Hotel Fit Fun, Harrachov, Czech Republic"]
[Date "2024.09.21"]
[Round "2.1"]
[White "Hak David"]
[Black "Pejrimovska Viola Ruby"]
[Result "1-0"]
[TimeControl "20+5"]
[WhiteFideId "377007"]
[BlackFideId "23709529"]
[WhiteElo "2103"]
[BlackElo "1876"]

1. d4 {[%clk 00:20:09]} {[%emt 00:00:01]} Nf6 {[%clk 00:20:08]} {[%emt
00:00:02]} 2. c4 {[%clk 00:20:13]} {[%emt 00:00:01]} g6 {[%clk 00:19:56]}
{[%emt 00:00:17]} 3. Nc3 {[%clk 00:20:17]} {[%emt 00:00:02]} Bg7 {[%clk
00:20:00]} 4. e4 {[%clk 00:20:21]} {[%emt 00:00:01]} d6 {[%clk 00:20:04]} 5.
Nf3 {[%clk 00:20:25]} O-O {[%clk 00:20:05]} {[%emt 00:00:04]} 6. Be2 {[%clk
00:20:28]} {[%emt 00:00:02]} e5 {[%clk 00:20:08]} {[%emt 00:00:02]} 7. O-O
{[%clk 00:20:32]} {[%emt 00:00:02]} Nc6 {[%clk 00:20:11]} {[%emt 00:00:02]} 8.
d5 {[%clk 00:20:36]} {[%emt 00:00:01]} Ne7 {[%clk 00:20:14]} {[%emt 00:00:01]}
9. Ne1 {[%clk 00:20:38]} {[%emt 00:00:03]} Nd7 {[%clk 00:19:59]} {[%emt
00:00:20]} 10. Be3 {[%clk 00:20:42]} {[%emt 00:00:01]} f5 {[%clk 00:19:47]}
{[%emt 00:00:18]} 11. f3 {[%clk 00:20:46]} f4 {[%clk 00:18:06]} {[%emt
00:01:45]} 12. Bf2 {[%clk 00:20:50]} g5 {[%clk 00:17:45]} {[%emt 00:00:27]} 13.
a4 {[%clk 00:20:53]} {[%emt 00:00:02]} Ng6 {[%clk 00:17:35]} {[%emt 00:00:14]}
14. a5 {[%clk 00:20:55]} {[%emt 00:00:04]} h5 {[%clk 00:16:41]} {[%emt
00:00:58]} 15. Nb5 {[%clk 00:17:03]} {[%emt 00:03:57]} h4 {[%clk 00:13:44]}
{[%emt 00:03:02]} 16. Nxa7 {[%clk 00:15:46]} {[%emt 00:01:22]} Rxa7 {[%clk
00:11:56]} {[%emt 00:01:53]} 17. Bxa7 {[%clk 00:15:49]} {[%emt 00:00:02]} Nf6
{[%clk 00:11:59]} {[%emt 00:00:01]} 18. h3 {[%clk 00:13:22]} {[%emt 00:02:33]}
g4 {[%clk 00:09:46]} {[%emt 00:02:18]} 19. hxg4 {[%clk 00:12:58]} {[%emt
00:00:28]} Nh5 {[%clk 00:07:13]} {[%emt 00:02:38]} 20. gxh5 {[%clk 00:12:03]}
{[%emt 00:01:01]} Qg5 {[%clk 00:05:39]} {[%emt 00:01:39]} 21. hxg6 {[%clk
00:11:05]} {[%emt 00:01:03]} Rf6 {[%clk 00:04:53]} {[%emt 00:00:51]} 22. Qd2
{[%clk 00:09:34]} {[%emt 00:01:36]} Rxg6 {[%clk 00:03:25]} {[%emt 00:01:33]} 23.
Bd1 {[%clk 00:08:57]} {[%emt 00:00:42]} Qh5 {[%clk 00:03:12]} {[%emt 00:00:18]}
24. Kf2 {[%clk 00:07:12]} {[%emt 00:01:50]} h3 {[%clk 00:03:05]} {[%emt
00:00:13]} 25. Ke2 {[%clk 00:06:48]} {[%emt 00:00:29]} hxg2 {[%clk 00:00:42]}
{[%emt 00:02:27]} 26. Rg1 {[%clk 00:06:50]} {[%emt 00:00:03]} Qh2 {[%clk
00:00:11]} {[%emt 00:00:36]} 27. Kd3 {[%clk 00:06:48]} {[%emt 00:00:07]} Bh3
{[%clk 00:00:09]} {[%emt 00:00:07]} 28. Bf2 {[%clk 00:06:23]} {[%emt 00:00:30]}
Bf6 {[%clk 00:00:10]} {[%emt 00:00:04]} 29. b4 {[%clk 00:05:45]} {[%emt
00:00:43]} Bh4 {[%clk 00:00:13]} {[%emt 00:00:02]} 30. b5 {[%clk 00:05:48]}
{[%emt 00:00:03]} Rg3 {[%clk 00:00:09]} {[%emt 00:00:09]} 31. a6 {[%clk
00:05:44]} {[%emt 00:00:10]} Bg4 {[%clk 00:00:07]} {[%emt 00:00:06]} 32. Bxg3
{[%clk 00:05:36]} {[%emt 00:00:13]} Qxg1 {[%clk 00:00:09]} {[%emt 00:00:04]} 33.
axb7 {[%clk 00:03:08]} {[%emt 00:02:32]} Qd4+ {[%clk 00:00:12]} {[%emt
00:00:02]} 34. Kc2 {[%clk 00:03:06]} {[%emt 00:00:07]} Qxc4+ {[%clk 00:00:08]}
{[%emt 00:00:09]} 35. Qc3 {[%clk 00:03:00]} {[%emt 00:00:12]} Qxb5 {[%emt
00:00:07]} 36. Ra8+ {[%clk 00:02:45]} {[%emt 00:00:19]} Kg7 {[%clk 00:00:06]}
{[%emt 00:00:05]} 37. b8=Q {[%clk 00:02:36]} {[%emt 00:00:14]} Qxb8 {[%clk
00:00:08]} {[%emt 00:00:04]} 38. Rxb8 {[%clk 00:02:38]} {[%emt 00:00:03]} g1=Q
{[%clk 00:00:08]} {[%emt 00:00:04]} 39. Qxc7+ {[%clk 00:02:36]} {[%emt
00:00:07]} Kg6 {[%clk 00:00:07]} {[%emt 00:00:06]} 40. Rg8+ {[%clk 00:02:38]}
{[%emt 00:00:03]} Kh6 {[%clk 00:00:08]} {[%emt 00:00:05]} 41. Qg7+ {[%clk
00:02:40]} {[%emt 00:00:02]} Kh5 {[%clk 00:00:11]} {[%emt 00:00:02]} 42. Qg6#
{[%clk 00:02:44]} {[%emt 00:00:01]} 1-0



[ePGN "0.1;DGT LiveChess/2.2.6"]